bitfinex/quotes_ETHUSD_20241109
["timestamp","ask_amount","ask_price","bid_price","bid_amount"]
[1731177057246,0.0498,3042.9,3042.8,1.25954443]
[1731177057452,0.0498,3042.9,3042.8,2.12576815]
[1731177061793,0.0498,3042.9,3042.8,2.06004443]
[1731177062292,0.0498,3042.9,3042.8,0.8005]
[1731177062494,0.0498,3042.9,3042.8,2.06004443]
[1731177062654,0.0498,3042.9,3042.8,0.8005]
[1731177062858,0.0498,3042.9,3042.8,2.06004443]
[1731177065994,0.0498,3042.9,3042.8,2.12575769]
[1731177066195,1.317706,3043.9,3042.8,2.12575769]
[1731177066196,1.317706,3043.9,3043.0,0.8005]
[1731177066409,1.317706,3043.9,3043.8,1.25954443]
[1731177068198,1.317706,3043.9,3043.5,0.8005]
[1731177068519,1.317706,3043.9,3043.2,2.06004443]
[1731177068520,2.133106,3043.9,3043.2,2.06004443]
[1731177068812,2.133106,3043.9,3043.3,0.20600444]
[1731177069407,1.317706,3043.9,3043.7,0.8005]
[1731177072417,1.317706,3043.9,3043.7,3.8005]
[1731177072916,1.317706,3043.9,3043.5,3.0]
[1731177073075,1.317706,3043.9,3043.7,0.0656957]
[1731177073281,1.317706,3043.9,3043.4,3.8161]
[1731177073813,1.317706,3043.9,3043.5,0.0656991]
[1731177074023,1.317706,3043.9,3043.4,3.8161]
[1731177074790,1.317706,3043.9,3043.6,2.72475189]
[1731177075127,1.317706,3043.9,3043.7,3.0]
[1731177075320,1.317706,3043.9,3043.8,0.8161]
[1731177075523,1.317706,3043.9,3043.8,1.3661]
[1731177076989,1.317706,3043.9,3043.8,0.8161]
[1731177080148,1.317706,3043.9,3043.8,1.3661]
[1731177081026,1.317706,3043.9,3043.7,2.39269476]
[1731177081467,1.317706,3043.9,3043.7,2.63196424]
[1731177081601,1.317706,3043.9,3043.8,0.06569599]
[1731177081805,2.091606,3043.9,3043.7,2.63196424]
[1731177082037,2.091606,3043.9,3043.7,2.39269476]
[1731177083412,2.091606,3043.9,3043.0,2.72475189]
[1731177083811,0.7739,3043.8,3042.9,0.34214611]
[1731177084343,0.7739,3043.8,3043.0,0.06571297]
[1731177084545,0.7739,3043.6,3042.6,2.39269476]
[1731177085335,0.7739,3043.6,3042.7,2.79046489]
[1731177085533,0.7739,3043.6,3042.7,3.24302945]
[1731177086139,0.7739,3043.6,3042.8,3.0]
[1731177086539,0.7739,3043.6,3042.9,0.06570989]
[1731177086710,0.7739,3043.6,3043.0,0.30657099]
[1731177086914,0.7739,3043.6,3043.1,0.06570983]
[1731177087154,0.7739,3043.6,3043.2,0.06570986]
[1731177088022,0.7739,3043.6,3043.0,0.30657099]
[1731177090568,0.7739,3043.6,3043.1,0.06571224]
[1731177091555,0.7739,3043.6,3043.0,3.84742288]
[1731177091770,0.7739,3043.6,3043.1,3.06571199]
[1731177091932,0.45752036,3043.6,3043.1,3.06571199]
[1731177093938,1.317706,3043.9,3043.3,2.72475189]
[1731177094138,1.317706,3043.9,3043.4,0.06570406]
[1731177094967,2.118706,3043.9,3043.4,0.06570406]
[1731177095184,2.118706,3043.9,3043.5,0.27904559]
[1731177095335,2.118706,3043.9,3043.6,0.06570268]
[1731177095530,2.118706,3043.9,3043.5,0.27904559]
[1731177099482,2.118706,3043.9,3043.1,3.55]
[1731177100471,2.118706,3043.9,3043.1,3.0]
[1731177101587,2.118706,3043.9,3043.2,0.06570277]
[1731177103296,2.118706,3043.9,3043.4,3.0]
[1731177103483,2.118706,3043.9,3043.5,0.06570281]
[1731177103648,2.118706,3043.9,3043.6,0.30657028]
[1731177103943,2.118706,3043.9,3043.7,0.06570282]
[1731177105855,2.118706,3043.9,3043.6,0.30657028]
[1731177106253,2.118706,3043.9,3043.1,3.0]
[1731177106649,2.118706,3043.9,3043.2,0.06570285]
[1731177108890,2.118706,3043.9,3043.1,3.0]
[1731177109488,0.801,3043.8,3042.7,0.8278]
[1731177109660,0.801,3043.8,3043.0,0.06571256]
[1731177109990,0.801,3043.8,3042.8,0.06570974]
[1731177110150,0.801,3043.8,3042.7,0.8278]
[1731177110346,0.801,3043.7,3042.4,3.55255189]
[1731177110758,0.801,3043.7,3042.3,3.70657176]
[1731177111187,0.801,3043.7,3042.4,0.06572297]
[1731177111374,0.801,3043.4,3042.3,2.39269476]
[1731177111590,0.801,3043.4,3042.4,0.30499245]
[1731177111797,0.801,3043.4,3042.4,0.23926948]
[1731177112512,0.801,3043.4,3042.4,3.23926948]
[1731177113387,0.801,3043.4,3042.4,0.23926948]
[1731177113607,0.801,3043.4,3042.1,3.90371955]
[1731177113815,0.801,3043.4,3042.1,4.35622998]
[1731177114609,0.801,3043.4,3042.1,1.35622998]
[1731177115612,0.7811,3043.3,3042.1,1.35622998]
[1731177117478,0.7811,3043.3,3042.1,0.90371955]
[1731177117806,0.7811,3043.1,3042.1,0.90371955]
[1731177118308,0.7811,3043.1,3042.4,0.25]
[1731177122511,0.7811,3043.1,3042.4,0.31573703]
[1731177122688,0.7811,3043.1,3042.4,0.25]
[1731177122892,0.7811,3043.1,3042.5,0.06573172]
[1731177124414,0.7811,3043.1,3042.4,0.25]
[1731177126317,0.7811,3043.1,3042.5,0.06572735]
[1731177127084,0.7811,3043.1,3042.4,0.25]
[1731177127483,0.7811,3043.1,3042.5,0.06572225]
[1731177127720,0.7811,3043.8,3042.7,3.0]
[1731177129010,0.7811,3043.8,3042.6,3.0]
[1731177133221,2.72475189,3043.8,3042.5,2.39269476]
[1731177133410,0.7819,3043.6,3042.5,2.39269476]
[1731177136827,0.7819,3043.6,3042.6,0.06572621]
[1731177137139,0.7819,3043.6,3042.5,2.39269476]
[1731177137298,0.7819,3043.4,3042.5,2.39269476]
[1731177139301,0.7819,3043.4,3042.4,0.25]
[1731177139302,2.72475189,3043.1,3042.4,0.25]
[1731177139524,0.7819,3043.0,3042.4,0.25]
[1731177139733,0.7819,3042.8,3042.4,0.25]
[1731177141225,3.50665189,3042.8,3042.4,0.25]
[1731177141552,0.7819,3042.7,3042.4,0.25]
[1731177142113,0.7819,3042.7,3041.9,1.0]
[1731177153439,0.7859,3042.3,3041.9,1.0]
[1731177156599,0.32458627,3042.4,3042.0,0.06574658]
[1731177156807,0.32458627,3042.4,3042.1,0.18436466]
[1731177157091,0.32458627,3042.4,3042.3,4.05265189]
[1731177157261,0.32458627,3042.4,3042.3,4.70045883]
[1731177157464,0.32458627,3042.4,3042.3,7.42521072]
[1731177159101,0.32458627,3042.4,3042.3,7.49092698]
[1731177159393,0.7859,3043.8,3042.5,0.7779]
[1731177159557,0.7859,3043.8,3043.0,0.7779]
[1731177159758,0.7859,3043.8,3043.1,0.0657121]
[1731177160158,0.7859,3043.8,3043.0,0.7779]
[1731177160555,0.7859,3043.8,3043.1,0.06570649]
[1731177160805,0.7859,3043.8,3043.0,0.7779]
[1731177162993,0.7859,3043.8,3042.7,0.7779]
[1731177164101,0.7859,3043.8,3042.9,3.0]
[1731177168282,0.7859,3043.8,3042.9,4.313746]
[1731177170709,0.7859,3043.8,3043.0,0.7535]
[1731177170913,1.317706,3043.9,3043.1,0.55]
[1731177171218,1.317706,3043.9,3043.2,3.0]
[1731177171503,1.317706,3043.9,3043.5,3.0]
[1731177171802,1.317706,3043.9,3043.6,0.06570082]
[1731177173267,1.317706,3043.9,3043.5,3.0]
[1731177174410,1.317706,3043.9,3043.6,0.82459739]
[1731177174618,1.317706,3043.9,3043.6,0.7589]
[1731177176418,0.7633,3043.8,3043.5,3.0]
[1731177176715,0.7633,3043.8,3043.6,0.06570361]
[1731177176882,0.7633,3043.8,3043.4,0.06570365]
[1731177177085,1.317706,3043.9,3043.4,0.06570365]
[1731177177890,1.317706,3043.9,3043.3,0.7589]
[1731177178216,1.317706,3043.9,3043.4,0.06570297]
[1731177179005,1.317706,3043.9,3043.3,0.7589]
[1731177179220,1.317706,3043.9,3043.4,0.06570302]
[1731177180646,1.317706,3043.9,3043.5,0.55]
[1731177181013,1.317706,3043.9,3043.4,3.0]
[1731177181907,0.7633,3043.8,3043.1,3.7589]
[1731177183060,0.7633,3043.8,3042.9,1.313746]
[1731177184120,0.7633,3043.8,3043.0,0.06570905]
[1731177184421,0.7633,3043.8,3042.9,1.313746]
[1731177184955,0.7633,3043.8,3043.1,3.0]
[1731177185125,0.7633,3043.8,3043.2,0.06570622]
[1731177186136,0.7633,3043.8,3043.3,0.06570625]
[1731177186347,1.317706,3043.9,3043.4,0.7589]
[1731177191727,1.317706,3043.9,3043.5,0.06570041]
[1731177191935,1.317706,3043.9,3043.4,0.7589]
[1731177192160,1.317706,3043.9,3043.6,3.0]
[1731177192659,1.317706,3043.9,3043.4,0.7589]
[1731177194771,0.8193,3043.8,3043.3,3.0]
[1731177197675,0.8193,3043.8,3043.4,0.06570424]
[1731177198450,0.8193,3043.8,3043.3,3.0]
[1731177199552,0.8193,3043.8,3043.4,0.06570475]
[1731177199890,0.8193,3043.8,3043.3,3.0]
[1731177200290,0.8193,3043.8,3043.0,3.0]
[1731177202011,0.8193,3043.8,3042.9,0.7572]
[1731177202156,0.8193,3043.8,3043.0,3.55]
[1731177204781,0.8193,3043.8,3043.0,3.0]
[1731177204985,0.8193,3043.8,3042.7,0.7572]
[1731177205371,0.8193,3043.8,3042.8,0.06570969]
[1731177206602,0.8193,3043.8,3043.0,3.0]
[1731177209107,1.317706,3043.9,3043.4,3.0]
[1731177211459,1.317706,3043.9,3043.7,3.0]
[1731177212002,1.317706,3043.9,3043.4,3.0]
[1731177214608,0.7725,3043.8,3043.4,3.0]
[1731177215385,0.7725,3043.8,3043.1,3.55]
[1731177216088,1.317706,3043.9,3043.5,0.7591]
[1731177219420,1.317706,3043.9,3043.6,6.27475189]
[1731177221623,1.317706,3043.9,3043.7,0.7591]
[1731177221819,1.317706,3043.9,3043.8,0.55]
[1731177223918,1.317706,3043.9,3043.6,5.72475189]
[1731177227624,1.317706,3043.9,3043.7,0.55]
[1731177228617,1.317706,3043.9,3043.5,2.39269476]
[1731177229030,0.8241,3043.8,3043.5,2.39269476]
[1731177229316,0.8241,3043.8,3043.6,3.23926948]
[1731177230184,0.8241,3043.8,3043.5,2.39269476]
[1731177230705,0.81809455,3043.8,3043.5,2.39269476]
[1731177232212,1.317706,3043.9,3043.6,0.06570452]
[1731177232416,1.317706,3043.9,3043.5,2.39269476]
[1731177232722,1.317706,3043.9,3043.6,0.06570345]
[1731177232924,1.317706,3043.9,3043.5,2.39269476]
[1731177233102,1.317706,3043.9,3043.6,0.06570368]
[1731177233706,0.7596,3043.8,3043.6,0.06570368]
[1731177235199,1.317706,3043.9,3043.7,2.72475189]
[1731177235401,1.317706,3043.9,3043.8,4.3128]
[1731177235941,1.317706,3043.9,3043.8,3.0]
[1731177237511,1.317706,3043.9,3043.8,3.61569785]
[1731177237844,1.317706,3043.9,3043.8,4.3128]
[1731177241604,1.317706,3043.9,3043.8,1.3128]
[1731177241838,1.317706,3043.9,3043.8,7.03755189]
[1731177243009,0.7633806,3044.8,3043.8,6.35043773]
[1731177243156,0.7633806,3044.8,3044.5,2.72475189]
[1731177243457,0.7633806,3044.8,3044.6,3.0]
[1731177243652,0.7633806,3044.8,3044.6,3.06567934]
[1731177244065,0.0037806,3044.8,3044.7,0.55]
[1731177244413,0.7133806,3045.1,3044.6,3.0]
[1731177245129,0.7133806,3045.1,3044.3,3.55]
[1731177245334,0.7133806,3045.1,3044.1,0.55]
[1731177245845,0.7133806,3045.1,3044.0,3.0]
[1731177246361,0.7133806,3045.1,3043.9,2.72475189]
[1731177246545,0.7133806,3045.1,3044.0,0.27247519]
[1731177247357,0.7133806,3045.1,3044.2,2.72475189]
[1731177247559,0.7133806,3045.1,3044.5,2.72475189]
[1731177247748,0.7133806,3045.1,3044.3,3.55]
[1731177251541,0.7133806,3045.1,3044.4,0.0656761]
[1731177251888,0.7133806,3045.1,3044.3,3.55]
[1731177252544,0.7133806,3045.1,3044.3,3.0]
[1731177252748,0.7133806,3045.1,3044.0,3.0]
[1731177253280,0.7133806,3045.1,3043.8,2.72475189]
[1731177253881,0.7133806,3045.1,3043.9,0.55]
[1731177254437,0.7133806,3045.1,3043.5,3.17629476]
[1731177254438,0.7133806,3045.1,3043.6,3.0]
[1731177254874,0.7133806,3045.1,3043.5,2.39269476]
[1731177255656,0.7133806,3045.1,3043.8,0.06569741]
[1731177256150,0.7133806,3045.1,3043.5,2.39269476]
[1731177256337,0.7133806,3045.1,3043.6,3.0]
[1731177256543,0.7133806,3045.1,3043.8,0.06569742]
[1731177256771,0.7133806,3045.1,3043.6,3.0]
[1731177257079,3.43813249,3045.1,3043.6,3.0]
[1731177257288,0.8201,3044.7,3043.5,2.39269476]
[1731177262969,0.8201,3044.7,3043.6,0.06570649]
[1731177263489,0.8201,3044.7,3043.6,3.06570649]
[1731177265342,0.8201,3044.7,3043.6,3.0]
[1731177265777,0.8201,3044.7,3043.6,3.06569768]
[1731177266386,0.8201,3044.7,3043.6,3.0]
[1731177266598,0.8201,3044.7,3043.9,3.0]
[1731177266766,0.8201,3044.7,3044.0,0.06569124]
[1731177266961,0.8201,3044.7,3044.1,0.30656912]
[1731177267382,0.8201,3044.7,3043.6,3.0]
[1731177270799,0.8201,3044.7,3043.8,2.72475189]
[1731177271096,0.8201,3044.7,3043.9,3.0]
[1731177271597,0.8201,3044.7,3044.0,0.0656952]
[1731177271767,0.8201,3044.7,3044.0,0.06569521]
[1731177271968,0.8201,3044.7,3044.1,0.30656952]
[1731177273469,0.8201,3044.7,3044.2,0.06569521]
[1731177273778,0.8201,3044.7,3044.1,0.30656952]
[1731177274365,0.8201,3044.7,3044.2,0.06569133]
[1731177274566,0.8201,3044.7,3044.1,0.30656952]
[1731177276413,0.8201,3044.7,3044.2,3.61568621]
[1731177276708,0.83,3045.0,3044.4,2.72475189]
[1731177277702,0.83,3045.0,3044.5,3.0]
[1731177278812,0.83,3045.0,3044.6,0.06567728]
[1731177279102,0.83,3045.0,3044.5,3.0]
[1731177282608,0.83,3045.0,3044.6,0.06567722]
[1731177283119,0.1398595,3045.7,3044.6,0.06567722]
[1731177283120,0.83,3045.6,3044.7,3.27475189]
[1731177285916,0.1398595,3045.7,3044.7,3.27475189]
[1731177285917,0.1398595,3045.7,3045.4,3.7565]
[1731177286111,0.1398595,3045.7,3045.5,0.06565393]
[1731177286813,0.1398595,3045.7,3045.4,3.7565]
[1731177286968,0.1398595,3045.7,3045.4,0.7565]
[1731177287173,0.1398595,3045.7,3045.4,3.48125189]
[1731177287375,0.1398595,3045.7,3045.1,0.7959]
[1731177287679,0.1398595,3045.7,3045.1,3.0]
[1731177288084,0.7981,3045.6,3044.8,3.0]
[1731177291713,0.7981,3045.6,3044.9,0.06566846]
[1731177292068,0.7981,3045.6,3044.8,3.0]
[1731177292517,0.7981,3045.6,3044.9,0.55]
[1731177293381,0.7981,3045.6,3045.0,2.72475189]
[1731177295306,0.7981,3045.6,3045.1,0.85686452]
[1731177295613,0.1398595,3045.7,3045.4,3.55]
[1731177296615,0.1398595,3045.7,3045.4,3.0]
[1731177297111,0.1398595,3045.7,3045.1,3.7912]
[1731177297978,0.1398595,3045.7,3045.2,0.55]
[1731177298600,0.1398595,3045.7,3045.3,2.72475189]
[1731177299015,0.1398595,3045.7,3045.4,3.0]
[1731177302104,0.7744,3045.6,3044.6,1.5893]
[1731177302305,0.7744,3045.6,3044.9,3.0]
[1731177303006,0.7744,3045.6,3044.6,3.0]
[1731177303209,0.7744,3045.6,3044.8,3.0]
[1731177305238,0.7744,3045.6,3045.4,1.0]
[1731177306227,0.7744,3045.6,3045.5,0.06566805]
[1731177306503,0.7744,3045.6,3045.4,1.0]
[1731177306938,0.1398595,3045.7,3045.4,1.0]
[1731177309747,0.7986,3045.6,3045.4,1.0]
[1731177329387,0.1398595,3045.7,3045.4,1.0]
[1731177332740,0.7946,3045.6,3045.4,1.0]
[1731177332940,0.7946,3045.6,3044.5,2.39269476]
[1731177333170,0.08729842,3045.5,3044.6,0.23926948]
[1731177333464,0.7946,3045.4,3044.6,0.23926948]
[1731177333771,0.08690944,3045.3,3044.7,0.7554]
[1731177334129,0.08690944,3045.3,3044.8,0.06567958]
[1731177334325,0.7946,3045.4,3044.8,0.06567958]
[1731177334570,0.7946,3045.4,3044.7,0.7554]
[1731177334956,0.7946,3045.4,3044.8,0.06567362]
[1731177335167,0.7946,3045.4,3044.8,0.06567363]
[1731177335348,0.7946,3045.4,3044.6,0.23926948]
[1731177335531,0.7946,3045.4,3044.5,5.39269476]
[1731177335937,0.08689818,3045.3,3044.5,5.39269476]
[1731177336558,0.08689818,3045.3,3044.5,2.39269476]
[1731177336762,0.7946,3045.2,3044.5,2.39269476]
[1731177340079,0.7946,3045.2,3044.0,0.7554]
[1731177340295,1.26084262,3045.1,3044.0,0.7554]
[1731177340494,0.88138262,3045.1,3044.0,0.7554]
[1731177345607,0.88138262,3045.1,3044.1,0.065689]
[1731177345888,0.7946,3045.1,3044.1,0.065689]
[1731177346656,0.7946,3045.1,3044.2,0.7554]
[1731177347365,0.7946,3045.1,3044.3,0.06568365]
[1731177348692,0.7946,3045.1,3044.2,0.7554]
[1731177349486,0.7946,3045.1,3044.3,0.06568019]
[1731177349795,0.7861,3045.6,3044.7,0.7931]
[1731177350847,0.7861,3045.6,3044.7,1.5792]
[1731177351049,0.1398595,3045.7,3045.1,0.7931]
[1731177351276,0.1398595,3045.7,3045.2,0.06566207]
[1731177351696,0.1398595,3045.7,3045.1,0.7931]
[1731177353072,0.1398595,3045.7,3045.2,0.06566242]
[1731177353788,0.1398595,3045.7,3045.1,0.7931]
[1731177354299,0.9668595,3045.7,3045.1,0.7931]
[1731177355074,0.1398595,3045.7,3045.1,0.7931]
[1731177356940,0.827,3045.6,3045.0,0.55]
[1731177357157,0.827,3045.6,3044.8,0.55]
[1731177357361,0.827,3045.6,3044.9,0.8031]
[1731177362083,0.827,3045.6,3044.7,0.7861]
[1731177363351,0.827,3045.6,3044.8,0.55]
[1731177363549,0.827,3045.6,3044.8,0.7612]
[1731177365380,0.827,3045.6,3045.1,1.25671714]
[1731177369696,0.827,3045.6,3044.8,0.7612]
[1731177369867,0.827,3045.6,3045.1,1.25671714]
[1731177370366,0.827,3045.6,3045.3,1.25671714]
[1731177371089,0.1398595,3045.7,3045.5,1.25671714]
[1731177371813,0.1398595,3045.7,3045.1,3.8037]
[1731177371982,0.1398595,3045.7,3045.1,1.25671714]
[1731177372296,0.8257,3045.6,3045.1,1.25671714]
[1731177373289,0.8257,3045.6,3045.1,0.20604171]
[1731177373489,0.8257,3045.6,3045.0,1.25671714]
[1731177375008,0.8257,3045.6,3045.1,0.06566723]
[1731177375307,0.8257,3045.6,3044.9,0.8037]
[1731177375478,0.8257,3045.6,3045.0,0.06566707]
[1731177375686,0.8257,3045.6,3044.9,3.8037]
[1731177375906,0.8257,3045.6,3045.0,0.06566753]
[1731177376270,0.8257,3045.6,3044.9,3.8037]
[1731177376471,0.8257,3045.6,3044.9,3.0]
[1731177377876,0.8257,3045.6,3044.6,0.55]
[1731177378231,0.8257,3045.6,3044.5,0.55]
[1731177379082,0.8257,3045.6,3044.5,3.55]
[1731177380872,0.8257,3045.6,3044.7,2.72251124]
[1731177381171,0.8257,3045.6,3044.8,3.0]
[1731177386512,0.8257,3045.6,3045.0,2.72251124]
[1731177388418,0.8257,3045.6,3045.1,3.0]
[1731177391207,0.8257,3045.6,3044.9,0.55]
[1731177391526,0.8257,3045.6,3044.7,2.72251124]
[1731177391527,0.8257,3045.6,3044.8,3.0]
[1731177392603,0.8257,3045.6,3044.5,3.0]
[1731177392817,0.8257,3045.6,3044.4,5.39269476]
[1731177393050,0.08013689,3045.5,3044.4,5.39269476]
[1731177393328,0.7831,3045.4,3044.4,2.39269476]
[1731177394598,0.7831,3045.4,3044.5,2.72251124]
[1731177394904,0.7831,3045.4,3044.6,3.0]
[1731177395421,0.1398595,3045.7,3044.5,2.72251124]
[1731177395422,0.08001654,3045.3,3044.7,1.25694359]
[1731177395631,0.7831,3045.2,3044.7,1.25694359]
[1731177401638,0.7831,3045.2,3044.5,3.0]
[1731177401639,0.7831,3045.2,3044.5,4.25694359]
[1731177402836,0.7831,3045.2,3044.9,1.25694359]
[1731177405338,0.7831,3045.2,3044.7,1.25694359]
[1731177405543,0.7831,3045.2,3044.8,0.06567791]
[1731177405844,0.7831,3045.2,3044.7,1.25694359]
[1731177406206,0.7831,3045.2,3044.8,0.0656779]
[1731177407542,0.7831,3045.2,3044.9,1.25694359]
[1731177408824,0.7831,3045.2,3045.0,0.0656744]
[1731177409205,0.7831,3045.2,3045.1,1.25694359]
[1731177409658,0.1398595,3045.7,3045.1,1.25694359]
[1731177409659,0.824,3045.6,3045.1,1.25694359]
[1731177419174,0.824,3045.6,3044.4,5.44970946]
[1731177419382,0.824,3045.6,3044.5,1.25694359]
[1731177419676,0.833,3045.4,3044.5,1.25694359]
[1731177419831,0.07963326,3045.3,3044.5,1.25694359]
[1731177420039,0.833,3045.3,3044.5,1.25694359]
[1731177420275,0.07957548,3045.2,3044.5,1.25694359]
[1731177420580,0.833,3045.1,3044.5,1.25694359]
[1731177421131,0.833,3045.1,3044.5,4.25694359]
[1731177421434,0.833,3045.1,3044.4,5.44970946]
[1731177421631,0.833,3045.1,3044.5,4.25694359]
[1731177422080,0.833,3045.1,3044.7,1.25694359]
[1731177424370,0.833,3045.1,3044.5,1.25694359]
[1731177424576,0.833,3045.1,3044.5,4.25694359]
[1731177427937,0.833,3045.1,3044.5,3.0]
[1731177428137,0.833,3045.1,3044.4,6.70665305]
[1731177429260,0.833,3045.1,3044.4,2.44970946]
[1731177429465,0.07945992,3045.0,3044.4,2.44970946]
[1731177429652,0.8,3044.9,3044.4,2.44970946]
[1731177429847,0.07932973,3044.8,3044.4,2.39269476]
[1731177430052,0.8,3044.7,3044.4,2.39269476]
[1731177432545,0.7637,3044.5,3044.4,2.39269476]
[1731177433072,0.84285633,3044.5,3044.4,2.39269476]
[1731177435171,0.7637,3044.5,3044.4,2.39269476]
[1731177437786,0.7637,3045.4,3044.4,2.39269476]
[1731177438309,0.7637,3045.2,3044.4,2.39269476]
[1731177438584,0.7637,3045.0,3044.4,2.39269476]
[1731177439082,0.07935424,3044.9,3044.4,2.39269476]
[1731177442684,0.07935424,3044.9,3044.5,1.25694359]
[1731177442876,0.7637,3045.0,3044.5,1.25694359]
[1731177443860,0.0767627,3044.9,3044.4,2.39269476]
[1731177446561,0.0767627,3044.9,3044.5,1.25694359]
[1731177446897,0.7637,3045.0,3044.5,1.25694359]
[1731177448474,0.7637,3045.0,3044.4,2.39269476]
[1731177448679,0.07676797,3044.9,3044.4,2.39269476]
[1731177449296,0.8245,3044.8,3044.4,2.39269476]
[1731177450091,0.07665166,3044.7,3044.4,2.39269476]
[1731177450405,0.8245,3044.8,3044.4,2.39269476]
[1731177450705,0.07665166,3044.7,3044.4,2.39269476]
[1731177450893,0.8245,3044.8,3044.4,2.39269476]
[1731177451098,0.07665166,3044.7,3044.4,2.39269476]
[1731177451295,0.8245,3044.8,3044.4,2.39269476]
[1731177451495,0.07665166,3044.7,3044.4,2.39269476]
[1731177451810,0.8245,3044.8,3044.4,2.39269476]
[1731177454419,0.791,3044.6,3044.4,2.39269476]
[1731177454716,0.01,3045.1,3044.4,2.39269476]
[1731177454717,0.07653439,3044.5,3044.4,2.39269476]
[1731177454885,0.791,3044.5,3044.4,2.39269476]
[1731177455086,0.86752648,3044.5,3044.4,2.39269476]
[1731177457691,0.86752648,3044.5,3043.7,4.25694359]
[1731177457890,0.86752648,3044.5,3043.7,1.25694359]
[1731177458512,0.86752648,3044.5,3043.8,0.06569941]
[1731177458726,0.86752648,3044.5,3043.7,1.25694359]
[1731177459212,0.86752648,3044.5,3043.5,1.25694359]
[1731177460517,0.791,3044.5,3043.4,3.8177]
[1731177460674,0.07646438,3044.4,3043.5,1.32265071]
[1731177460869,0.791,3044.3,3043.5,1.32265071]
[1731177461081,0.07634875,3044.2,3043.5,1.25694359]
[1731177461271,0.791,3044.1,3043.5,1.25694359]
[1731177462633,0.791,3044.1,3043.3,2.39269476]
[1731177462976,0.86722877,3044.0,3043.3,2.39269476]
[1731177464179,0.87722877,3044.0,3043.3,2.39269476]
[1731177464380,0.87722877,3044.0,3042.9,1.25694359]
[1731177464625,2.13417236,3044.0,3042.7,0.06572041]
[1731177464818,0.791,3043.8,3042.7,1.25694359]
[1731177465026,0.791,3043.8,3042.7,1.32266637]
[1731177465192,0.86705528,3043.7,3042.7,1.32266637]
[1731177465830,0.86705528,3043.7,3042.7,1.25694359]
[1731177466021,0.86705528,3043.7,3043.6,1.25694359]
[1731177466184,0.86705528,3043.7,3043.4,1.25694359]
[1731177466385,0.791,3043.7,3043.4,1.25694359]
[1731177467288,0.791,3043.7,3043.1,2.725584]
[1731177467583,0.791,3043.7,3043.2,3.2725584]
[1731177469023,0.791,3043.7,3042.8,3.0]
[1731177469527,0.791,3043.7,3042.8,3.06572053]
[1731177470535,0.791,3043.7,3042.8,3.0]
[1731177471618,0.791,3043.7,3043.3,2.725584]
[1731177472499,3.0,3044.7,3043.3,2.725584]
[1731177472795,0.7762,3044.5,3043.3,2.725584]
[1731177473138,0.07642795,3044.4,3043.3,2.725584]
[1731177473434,0.7762,3044.4,3043.3,2.725584]
[1731177473593,0.7762,3044.2,3043.3,2.725584]
[1731177477341,0.7762,3044.2,3043.1,0.7582]
[1731177477636,0.7762,3044.2,3043.1,3.7582]
[1731177478239,0.7762,3044.2,3043.1,3.0]
[1731177478538,0.7862,3044.2,3043.1,3.0]
[1731177478834,0.85246888,3044.1,3043.1,3.0]
[1731177479826,3.57805288,3044.1,3042.6,1.17347994]
[1731177480140,3.57805288,3044.1,3042.3,2.75556224]
[1731177480141,0.7762,3043.7,3042.3,3.22519476]
[1731177480302,0.07597206,3043.6,3042.5,0.06572403]
[1731177480643,0.7762,3043.5,3042.5,2.725584]
[1731177481437,0.7762,3043.5,3042.6,3.0]
[1731177482426,0.7762,3043.5,3042.3,3.22519476]
[1731177482427,0.7762,3043.5,3042.3,5.39269476]
[1731177482829,0.7762,3043.3,3042.3,5.39269476]
[1731177482999,0.7762,3043.3,3042.3,5.45842807]
[1731177483197,0.07574067,3043.2,3042.3,5.39269476]
[1731177483439,0.7762,3043.1,3042.4,3.0]
[1731177483744,0.7762,3043.1,3042.3,5.39269476]
[1731177484101,0.7762,3043.1,3042.3,2.39269476]
[1731177486845,0.7762,3042.9,3042.3,2.39269476]
[1731177488124,0.7762,3042.9,3042.3,5.45842625]
[1731177489054,0.7762,3042.9,3042.5,2.725584]
[1731177489351,0.7952,3043.7,3042.6,3.0]
[1731177489560,0.07546344,3042.8,3042.6,3.0]
[1731177489722,0.7952,3043.1,3042.6,3.8222]
[1731177494875,0.7952,3043.1,3042.6,3.0]
[1731177495246,0.7952,3043.1,3042.6,3.06572457]
[1731177495443,0.7952,3043.1,3042.6,0.06572457]
[1731177495661,0.7952,3043.1,3042.3,2.39269476]
[1731177499669,0.7952,3043.1,3042.4,0.06572721]
[1731177502052,0.7952,3043.1,3042.5,3.0]
[1731177502941,0.7952,3043.1,3042.5,3.8186]
[1731177504241,0.7677,3044.4,3043.1,0.8186]
[1731177504446,0.7677,3044.2,3043.1,3.8186]
[1731177504774,0.06372231,3044.1,3043.1,3.8186]
[1731177505074,0.7677,3044.0,3043.1,3.8186]
[1731177505454,0.06360666,3043.9,3043.1,3.8186]
[1731177506452,0.06360666,3043.9,3042.6,0.34261554]
[1731177506453,0.7677,3043.8,3042.8,3.8186]
[1731177506646,0.7677,3043.8,3042.8,3.0]
[1731177508840,0.7578,3043.6,3042.8,3.0]
[1731177510387,0.7578,3043.6,3042.4,2.725584]
[1731177510545,0.7578,3043.6,3042.4,3.0]
[1731177515787,0.7578,3043.6,3042.6,2.725584]
[1731177515965,0.7578,3043.6,3042.7,3.0]
[1731177517806,0.7578,3043.6,3042.4,3.0]
[1731177519507,0.7578,3043.6,3042.3,2.39269476]
[1731177519661,0.7821,3043.4,3042.3,2.39269476]
[1731177520095,0.7821,3043.2,3042.3,2.39269476]
[1731177520770,0.7821,3043.2,3042.4,0.06572944]
[1731177520975,0.7821,3043.2,3042.5,0.24584242]
[1731177522374,0.7821,3043.2,3042.3,2.39269476]
[1731177523183,0.7821,3043.0,3042.3,2.39269476]